bitfinex/quotes_SOLUSD_20240624
["timestamp","ask_amount","ask_price","bid_price","bid_amount"]
[1719192118442,19.5742,127.72,127.62,45.0]
[1719192118619,19.5742,127.72,127.62,7.8353]
[1719192118943,7.8318,127.69,127.63,45.0]
[1719192119137,7.8318,127.69,127.63,52.835]
[1719192119444,7.8304,127.71,127.65,7.8338]
[1719192119847,7.8304,127.71,127.66,45.0]
[1719192120020,7.8309,127.7,127.66,45.0]
[1719192120219,7.8303,127.71,127.66,45.0]
[1719192120435,7.8303,127.71,127.65,45.0]
[1719192120748,7.8303,127.71,127.65,52.8337]
[1719192120945,7.8303,127.71,127.65,45.0]
[1719192121134,19.5711,127.74,127.65,52.8337]
[1719192121335,19.5711,127.74,127.65,45.0]
[1719192121336,7.8309,127.7,127.65,45.0]
[1719192121541,19.5751,127.72,127.58,499.0897]
[1719192121845,7.8352,127.63,127.6,6.0972]
[1719192122020,19.583,127.67,127.55,35.3737]
[1719192122347,7.8364,127.61,127.56,6.176]
[1719192122528,7.8346,127.64,127.57,7.8383]
[1719192122722,7.8346,127.64,127.56,6.176]
[1719192122723,7.8361,127.62,127.56,14.0152]
[1719192122931,7.8359,127.62,127.56,14.0153]
[1719192123136,7.8348,127.64,127.57,7.8383]
[1719192123340,7.8361,127.62,127.56,14.0154]
[1719192123545,7.8361,127.62,127.56,6.176]
[1719192123749,19.5848,127.65,127.56,6.176]
[1719192124030,19.5848,127.65,127.56,14.0154]
[1719192124248,19.5814,127.68,127.57,100.0]
[1719192124446,2.69228741,127.72,127.59,100.0]
[1719192124653,19.5773,127.7,127.61,100.0]
[1719192124863,19.5741,127.72,127.62,45.0]
[1719192125161,7.8321,127.68,127.62,52.8355]
[1719192125761,19.5741,127.72,127.63,7.8349]
[1719192126075,7.8311,127.7,127.64,52.834]
[1719192126366,7.8311,127.7,127.65,45.0]
[1719192126734,2.69228741,127.75,127.58,19.5952]
[1719192126935,19.5742,127.72,127.59,119.5926]
[1719192127151,19.5742,127.72,127.6,100.0]
[1719192127472,19.5742,127.72,127.63,7.8347]
[1719192127641,7.831,127.7,127.64,7.8344]
[1719192128243,7.8316,127.69,127.65,45.0]
[1719192128467,7.8316,127.69,127.64,45.0]
[1719192128972,61.9901,127.77,127.65,6.1139]
[1719192128973,22.8548,127.77,127.65,6.1139]
[1719192129141,19.5634,127.79,127.71,7.8298]
[1719192129347,7.8274,127.76,127.67,19.5805]
[1719192129563,7.8274,127.76,127.68,45.0]
[1719192130372,7.8274,127.76,127.69,7.8311]
[1719192131213,7.8274,127.76,127.7,52.8307]
[1719192131214,7.8272,127.76,127.7,52.8307]
[1719192131479,7.8287,127.74,127.68,7.8319]
[1719192131853,19.5667,127.77,127.65,106.1139]
[1719192132041,19.5667,127.77,127.66,0.17]
[1719192132235,19.5635,127.79,127.66,100.17]
[1719192132452,7.8273,127.76,127.7,7.8303]
[1719192132946,19.5693,127.76,127.71,45.0]
[1719192133142,7.828,127.75,127.71,45.0]
[1719192133347,19.5647,127.79,127.71,45.0]
[1719192133574,7.8263,127.78,127.72,7.8295]
[1719192133741,37.52818741,127.82,127.73,45.0]
[1719192134169,7.8278,127.75,127.73,45.0]
[1719192134691,7.8266,127.77,127.73,45.0]
[1719192134982,7.8266,127.77,127.72,45.0]
[1719192135152,7.8261,127.78,127.72,52.8292]
[1719192135348,7.8254,127.79,127.73,7.8289]
[1719192135546,7.8243,127.81,127.74,52.8278]
[1719192135889,7.8243,127.81,127.75,45.0]
[1719192136168,7.8237,127.82,127.76,7.8269]
[1719192136479,7.8231,127.83,127.77,45.0]
[1719192136974,0.8451606,127.85,127.77,45.0]
[1719192137147,8.6671606,127.85,127.79,7.8251]
[1719192137348,0.8451606,127.85,127.8,45.0]
[1719192137771,0.8451606,127.85,127.81,6.2087]
[1719192138089,0.8451606,127.85,127.82,45.0]
[1719192138782,0.8451606,127.85,127.77,6.1659]
[1719192139072,0.8451606,127.85,127.78,45.0]
[1719192139371,0.8451606,127.85,127.79,0.17]
[1719192139581,0.8451606,127.85,127.81,7.8239]
[1719192139867,0.8451606,127.85,127.82,45.0]
[1719192140041,0.8451606,127.85,127.79,0.17]
[1719192140243,0.8451606,127.85,127.81,7.8239]
[1719192140442,0.8451606,127.85,127.82,52.8234]
[1719192140665,0.8451606,127.85,127.81,7.8239]
[1719192140873,19.3914606,127.91,127.82,45.0]
[1719192141065,6.23311296,127.94,127.82,45.0]
[1719192141238,7.8188,127.9,127.83,7.8225]
[1719192141442,7.8188,127.9,127.84,45.0]
[1719192141675,19.5433,127.93,127.84,52.8222]
[1719192142253,7.8184,127.91,127.84,52.8222]
[1719192142450,7.8186,127.9,127.84,45.0]
[1719192142672,7.8192,127.89,127.84,45.0]
[1719192143175,7.8179,127.92,127.85,7.8211]
[1719192143375,7.8171,127.93,127.86,45.0]
[1719192143564,19.5406,127.94,127.85,7.8214]
[1719192143754,19.5406,127.94,127.86,52.821]
[1719192143954,19.5363,127.97,127.86,45.0]
[1719192144171,19.5363,127.97,127.88,7.8192]
[1719192144375,7.8163,127.94,127.89,45.0]
[1719192145040,7.8169,127.93,127.89,45.0]
[1719192145247,39.0727,127.97,127.85,6.5616]
[1719192145660,19.5422,127.93,127.85,14.3828]
[1719192145896,7.8177,127.92,127.85,14.383]
[1719192146097,7.8181,127.91,127.85,14.383]
[1719192146277,7.8176,127.92,127.86,7.8208]
[1719192146478,7.8182,127.91,127.85,14.383]
[1719192146687,7.8186,127.9,127.85,6.5616]
[1719192146972,7.8186,127.9,127.86,45.0]
[1719192147176,7.8182,127.91,127.86,45.0]
[1719192147700,7.8176,127.92,127.86,52.821]
[1719192148398,0.8451606,127.98,127.86,45.0]
[1719192148705,19.5386,127.96,127.86,45.0]
[1719192149211,19.5407,127.94,127.86,45.0]
[1719192149395,7.8182,127.91,127.86,45.0]
[1719192149713,7.8203,127.88,127.85,6.5616]
[1719192149890,7.8203,127.88,127.82,24.0924]
[1719192150205,19.5437,127.92,127.82,16.2693]
[1719192150497,7.8173,127.93,127.87,7.8203]
[1719192150712,7.8168,127.93,127.87,7.8201]
[1719192151084,7.8164,127.94,127.88,7.8198]
[1719192151309,7.8168,127.93,127.87,7.8202]
[1719192151606,7.8164,127.94,127.88,52.8197]
[1719192151784,7.8168,127.93,127.88,45.0]
[1719192152183,0.8451606,127.98,127.88,45.0]
[1719192152381,7.8145,127.97,127.91,7.8178]
[1719192152591,0.8451606,127.98,127.92,45.0]
[1719192152980,7.8149,127.96,127.92,45.0]
[1719192153198,7.8156,127.95,127.91,45.0]
[1719192153510,7.8171,127.93,127.9,45.0]
[1719192153709,19.5377,127.96,127.9,45.0]
[1719192153911,7.8164,127.94,127.89,45.0]
[1719192154498,7.8157,127.95,127.89,45.0]
[1719192154697,7.8161,127.94,127.89,52.8191]
[1719192155204,7.8161,127.94,127.89,45.0]
[1719192155716,7.8167,127.93,127.89,45.0]
[1719192155915,7.8164,127.94,127.89,45.0]
[1719192156804,7.8157,127.95,127.89,52.8191]
[1719192157390,7.8152,127.96,127.9,7.8185]
[1719192157604,7.8152,127.96,127.91,45.0]
[1719192158012,7.8145,127.97,127.91,52.8178]
[1719192158391,7.8151,127.96,127.91,45.0]
[1719192158590,7.8156,127.95,127.91,45.0]
[1719192158810,0.8451606,127.98,127.9,45.0]
[1719192159008,7.8168,127.93,127.9,45.0]
[1719192159315,7.8162,127.94,127.89,45.0]
[1719192159522,19.5369,127.97,127.89,45.0]
[1719192159707,7.8152,127.96,127.9,7.8184]
[1719192160025,0.8451606,127.98,127.91,52.8179]
[1719192160320,0.8451606,127.98,127.89,45.0]
[1719192160321,0.8451606,127.98,127.93,7.8166]
[1719192160621,7.8163,127.94,127.89,45.0]
[1719192160789,19.537,127.97,127.89,45.0]
[1719192160991,19.537,127.97,127.84,119.5546]
[1719192160992,6.5951,127.93,127.82,16.2537]
[1719192161312,6.5951,127.93,127.8,7.8242]
[1719192161511,6.5951,127.93,127.75,106.6371]
[1719192161512,7.8222,127.84,127.75,26.2057]
[1719192161725,25.2302,127.9,127.79,7.8163]
[1719192162032,39.0915,127.91,127.68,100.0]
[1719192162033,15.22,127.8,127.68,100.0]
[1719192162328,15.22,127.8,127.68,116.178]
[1719192162528,7.8258,127.79,127.72,7.8295]
[1719192163025,15.22,127.8,127.74,7.8283]
[1719192163226,7.8243,127.81,127.74,7.8283]
[1719192163601,7.8248,127.8,127.73,7.8287]
[1719192163921,25.7004,127.84,127.72,7.8294]
[1719192163922,7.8254,127.79,127.72,7.8294]
[1719192164123,19.559,127.82,127.71,6.3269]
[1719192164325,0.34,127.83,127.71,6.3269]
[1719192164503,7.8243,127.81,127.74,7.8279]
[1719192165201,7.8234,127.83,127.76,7.8267]
[1719192165419,7.8237,127.82,127.75,7.8276]
[1719192165723,7.8237,127.82,127.76,45.0]
[1719192165900,7.8242,127.81,127.76,45.0]
[1719192166096,7.8248,127.8,127.75,45.0]
[1719192166409,7.8248,127.8,127.74,52.8283]
[1719192166922,7.8258,127.79,127.72,7.8291]
[1719192167224,7.8267,127.77,127.71,6.3269]
[1719192167528,7.8272,127.76,127.71,6.3269]
[1719192168007,7.828,127.75,127.68,7.8318]
[1719192168328,7.8291,127.73,127.67,6.3483]
[1719192168618,7.8291,127.73,127.67,14.1809]
[1719192168799,7.8291,127.73,127.67,6.3483]
[1719192169003,7.8291,127.73,127.67,14.1807]
[1719192170193,7.8315,127.69,127.64,16.1938]
[1719192170398,7.8312,127.7,127.64,16.1938]
[1719192171024,7.8304,127.71,127.64,24.028]
[1719192171323,7.8304,127.71,127.65,7.8339]
[1719192171523,7.8297,127.72,127.65,7.8339]
[1719192172294,7.8304,127.71,127.66,45.0]
[1719192172523,19.5711,127.74,127.66,45.0]
[1719192172524,7.8298,127.72,127.66,45.0]
[1719192172699,7.8298,127.72,127.66,52.8332]
[1719192173306,7.8292,127.73,127.66,52.8332]
[1719192173804,7.8296,127.72,127.66,52.8332]
[1719192174505,7.8303,127.71,127.66,45.0]
[1719192175013,19.5708,127.75,127.66,45.0]
[1719192175320,19.5708,127.75,127.65,45.17]
[1719192175519,19.5722,127.74,127.64,16.1938]
[1719192175822,0.17,127.76,127.64,16.1938]
[1719192176035,7.8302,127.72,127.66,7.8331]
[1719192176909,7.8302,127.72,127.67,45.0]
[1719192177809,7.8302,127.71,127.67,45.0]
[1719192178009,7.8302,127.71,127.66,45.0]
[1719192179210,7.831,127.7,127.66,45.0]
[1719192179414,7.831,127.7,127.65,45.0]
[1719192179813,7.8308,127.71,127.65,52.8335]
[1719192180335,7.8299,127.72,127.66,8.0033]
[1719192180518,19.5695,127.75,127.67,45.0]
[1719192180519,7.8302,127.71,127.67,45.0]
[1719192180719,7.8299,127.72,127.66,8.0032]
[1719192180914,7.8299,127.72,127.67,45.0]
[1719192181228,22.4963,127.79,127.67,45.0]
[1719192181428,25.67314897,127.8,127.68,100.34]
[1719192181638,7.8275,127.76,127.7,7.8305]
[1719192181840,7.8291,127.73,127.71,45.0]
[1719192182024,7.8291,127.73,127.68,0.17]
[1719192182342,19.5704,127.75,127.67,45.0]
[1719192182530,7.8299,127.72,127.67,45.0]
[1719192182733,19.5704,127.75,127.67,45.0]
[1719192183028,7.8298,127.72,127.67,45.0]
[1719192183346,19.5663,127.78,127.68,0.17]
[1719192183556,7.8286,127.74,127.68,8.1719]
[1719192183849,7.8286,127.74,127.69,45.0]
[1719192184726,7.8291,127.73,127.69,45.0]
[1719192184927,7.8291,127.73,127.68,45.17]
[1719192185847,7.8291,127.73,127.68,53.002]
[1719192186232,7.8286,127.74,127.68,53.002]
[1719192186647,7.8291,127.73,127.68,45.17]
[1719192187338,39.1313,127.78,127.64,16.1938]
[1719192187537,7.8334,127.66,127.63,6.4882]
[1719192187836,7.8329,127.67,127.63,6.4882]
[1719192188258,19.5782,127.7,127.63,6.4882]
[1719192188432,19.5743,127.72,127.63,6.4882]
[1719192188632,19.5743,127.72,127.63,14.323]
[1719192188839,7.8317,127.69,127.63,14.323]
[1719192190353,7.8317,127.69,127.64,45.0]
[1719192190544,7.8304,127.71,127.65,7.8337]
[1719192190742,7.8304,127.71,127.66,45.0]
[1719192191167,7.8314,127.69,127.66,45.0]
[1719192191343,7.8309,127.7,127.66,45.0]
[1719192191547,22.3464,127.76,127.58,121.67]
[1719192191854,7.8349,127.64,127.58,7.838]
[1719192192069,7.8346,127.64,127.58,7.8379]
[1719192192239,7.834,127.65,127.59,7.8374]
[1719192192751,19.5817,127.67,127.55,19.5987]
[1719192192962,7.8358,127.62,127.56,7.8393]
[1719192193170,6.6573,127.68,127.54,6.2426]
[1719192193461,7.836,127.62,127.56,7.8394]
[1719192193856,7.836,127.62,127.57,7.8388]
[1719192194163,42.5472,127.68,127.55,100.0]
[1719192194339,7.835,127.64,127.58,7.8381]
[1719192194760,7.8341,127.65,127.59,7.8376]
[1719192195143,7.8341,127.65,127.6,45.0]
[1719192195339,7.8339,127.65,127.6,45.0]
[1719192195539,7.834,127.65,127.6,45.0]
[1719192195740,19.5849,127.65,127.6,45.0]
[1719192195955,7.8345,127.64,127.6,45.0]
[1719192196347,7.834,127.65,127.6,45.0]
[1719192196557,19.5856,127.65,127.54,6.2426]
[1719192196763,19.5856,127.65,127.55,7.8396]
[1719192196764,7.8368,127.61,127.55,7.8396]
[1719192197367,7.836,127.62,127.55,7.8396]
[1719192197538,7.836,127.62,127.56,7.8394]
[1719192197865,7.836,127.62,127.54,6.2426]
[1719192198055,6.6573,127.68,127.54,125.8434]
[1719192198234,6.6573,127.68,127.55,45.0]
[1719192198437,7.8358,127.62,127.56,7.8389]
[1719192198667,19.5838,127.66,127.57,45.0]
[1719192198980,19.5838,127.66,127.55,45.0]
[1719192199141,7.8341,127.65,127.59,7.8375]
[1719192199339,7.8341,127.65,127.6,45.0]
[1719192199747,7.8336,127.66,127.6,52.8368]
[1719192199948,6.18080349,127.7,127.6,45.0]
[1719192199949,7.8332,127.67,127.6,45.0]
[1719192200148,7.8343,127.65,127.6,45.0]
[1719192200372,7.8339,127.65,127.6,45.0]
[1719192201537,193.442997,127.64,127.6,45.0]
[1719192201738,193.442997,127.64,127.61,7.8363]
[1719192201948,193.442997,127.64,127.62,45.0]
[1719192202186,193.442997,127.64,127.6,45.0]
[1719192202672,193.442997,127.64,127.6,52.8369]
[1719192202869,193.442997,127.64,127.62,7.8357]
[1719192203073,193.442997,127.64,127.63,7.8351]
[1719192203245,193.442997,127.64,127.63,52.8351]
[1719192203452,193.442997,127.64,127.63,45.0]
[1719192204348,153.443197,127.64,127.63,153.0051]
[1719192204551,136.776597,127.64,127.63,153.1751]
[1719192204771,120.109997,127.64,127.63,153.1751]
[1719192205485,98.390397,127.64,127.63,153.1751]
[1719192205778,7.8279,127.75,127.69,7.8312]
[1719192205966,7.8274,127.76,127.7,52.8307]
[1719192206148,7.8272,127.76,127.7,52.8308]
[1719192206343,16.3388,127.77,127.7,45.0]
[1719192206548,7.8296,127.72,127.7,45.0]
[1719192206770,19.5692,127.76,127.7,45.0]
[1719192206771,7.8292,127.73,127.7,45.0]
[1719192207082,16.3388,127.77,127.7,45.0]
[1719192207673,7.8285,127.74,127.7,45.0]
[1719192207846,16.3388,127.77,127.69,45.0]
[1719192208046,16.3388,127.77,127.71,7.83]
[1719192208047,24.1657,127.77,127.71,7.83]
[1719192208247,7.8271,127.76,127.72,45.0]
[1719192208476,16.3388,127.77,127.72,45.0]
[1719192208477,7.8266,127.77,127.72,45.0]
[1719192208969,6.3413,127.8,127.72,45.0]
[1719192209171,7.8269,127.77,127.72,45.0]
[1719192209572,7.8274,127.76,127.72,45.0]
[1719192209759,7.8274,127.76,127.71,45.0]
[1719192212571,7.829,127.74,127.71,45.0]
[1719192212797,22.7169,127.78,127.58,100.0]
[1719192212959,19.5802,127.68,127.6,7.8368]
[1719192213270,7.8334,127.66,127.6,7.8367]
[1719192213460,7.8329,127.67,127.61,7.8363]
[1719192213866,7.8329,127.67,127.54,25.9917]
[1719192213867,15.5649,127.67,127.54,25.9917]
[1719192214177,15.5649,127.67,127.56,7.8393]
[1719192214178,7.8361,127.62,127.56,7.8393]
[1719192214378,19.5847,127.66,127.55,100.0]
[1719192214752,7.8345,127.64,127.58,7.8378]
[1719192214954,7.8354,127.63,127.57,7.8385]
[1719192215152,7.8343,127.65,127.59,7.8375]
[1719192215459,7.8355,127.63,127.57,7.8387]
[1719192215671,7.8355,127.63,127.54,106.3908]
[1719192215672,7.8384,127.58,127.54,6.3908]
[1719192215871,7.839,127.57,127.53,0.8451606]
[1719192216178,19.5911,127.61,127.53,0.8451606]
[1719192216353,19.5878,127.63,127.53,0.8451606]
[1719192216678,7.8353,127.63,127.56,7.8388]
[1719192216859,19.5846,127.66,127.56,7.8388]
[1719192217060,35.1495,127.67,127.53,100.8451606]
[1719192217374,15.5649,127.67,127.56,19.5982]
[1719192217566,7.8343,127.65,127.59,7.8373]
[1719192217761,7.8348,127.64,127.6,45.0]
[1719192218363,15.5649,127.67,127.59,45.0]
[1719192218678,7.8345,127.64,127.59,45.0]
[1719192219261,7.8341,127.65,127.59,45.0]
[1719192219457,15.5649,127.67,127.59,45.0]
[1719192219680,7.8342,127.65,127.59,52.8375]
[1719192219979,7.8342,127.65,127.59,45.0]
[1719192220283,7.8342,127.65,127.59,52.8375]
[1719192220785,7.8327,127.67,127.61,7.8361]
[1719192220997,7.8327,127.67,127.62,45.0]
[1719192221657,39.1597,127.69,127.62,45.0]
[1719192221858,39.1597,127.69,127.53,360.7451606]
[1719192221859,19.5865,127.64,127.54,100.0]
[1719192222065,19.5865,127.64,127.56,7.8394]
[1719192222266,7.8349,127.64,127.58,7.8381]
[1719192223285,7.8349,127.64,127.59,45.0]
[1719192224074,22.9438,127.68,127.59,45.0]
[1719192224075,22.7738,127.68,127.59,45.0]
[1719192224273,7.8337,127.66,127.6,7.8367]
[1719192224486,7.8337,127.66,127.61,45.0]
[1719192224784,7.8344,127.65,127.61,45.0]
[1719192225085,7.8344,127.65,127.6,45.0]
[1719192225290,7.8347,127.64,127.6,45.0]
[1719192225598,7.8352,127.63,127.6,45.0]
[1719192225959,7.8347,127.64,127.6,45.0]
[1719192226160,22.7738,127.68,127.6,45.0]
[1719192226392,7.8343,127.65,127.6,45.0]
[1719192227667,7.3343,127.65,127.6,45.0]
[1719192228081,42.3543,127.68,127.6,45.0]
[1719192228082,7.8349,127.64,127.6,45.0]
[1719192228292,7.8349,127.64,127.59,45.0]
[1719192228595,42.3543,127.68,127.59,52.8375]
[1719192228596,7.8342,127.65,127.59,52.8375]
[1719192229167,7.8358,127.62,127.59,45.0]
[1719192229476,7.8347,127.64,127.58,52.8381]
[1719192229973,7.8347,127.64,127.59,7.8375]
[1719192230173,7.8354,127.63,127.6,45.0]
[1719192230481,7.8354,127.63,127.58,45.0]
[1719192231195,7.3354,127.63,127.58,45.0]
[1719192231573,7.8348,127.64,127.58,52.838]
[1719192232793,7.8352,127.63,127.58,52.838]
[1719192233787,19.5833,127.66,127.58,45.0]
[1719192233788,7.836,127.62,127.58,45.0]
[1719192233995,39.1672,127.66,127.54,100.0]
[1719192234192,7.836,127.62,127.56,7.8391]
[1719192234382,7.8365,127.61,127.55,7.8396]
[1719192234794,7.8365,127.61,127.53,0.8451606]
[1719192234795,7.8385,127.58,127.53,0.8451606]
[1719192235098,7.8377,127.59,127.53,0.8451606]
[1719192235274,7.8377,127.59,127.53,8.6861606]
[1719192235475,19.5916,127.61,127.53,8.6861606]
[1719192235476,19.5916,127.61,127.54,7.8406]
[1719192235699,7.8372,127.6,127.54,7.8406]
[1719192236200,7.8366,127.61,127.55,7.8399]
[1719192236504,7.8366,127.61,127.53,100.8451606]
[1719192236680,7.8356,127.63,127.57,7.8383]
[1719192237202,7.8339,127.65,127.59,7.837]
[1719192237394,7.8346,127.64,127.6,45.0]
[1719192237590,7.8346,127.64,127.58,52.8379]
[1719192237979,7.8339,127.65,127.6,7.8369]
[1719192238180,7.8339,127.65,127.61,45.0]
[1719192238382,42.3552,127.68,127.61,45.0]
[1719192238808,7.8339,127.65,127.61,45.0]
[1719192239087,7.8345,127.64,127.61,45.0]
[1719192239304,7.8352,127.63,127.6,45.0]
[1719192239609,7.8347,127.64,127.6,45.0]
[1719192239899,7.8347,127.64,127.59,45.0]
[1719192240103,7.834,127.65,127.59,52.8373]
[1719192240482,7.834,127.65,127.6,7.8369]
[1719192240685,7.8335,127.66,127.61,52.8363]
[1719192241006,7.8334,127.66,127.6,7.8367]
[1719192241211,7.8322,127.68,127.63,7.8351]
[1719192241404,7.8322,127.68,127.62,7.8355]
[1719192241620,7.831,127.7,127.64,7.834]
[1719192241895,41.1674,127.73,127.65,45.17]
[1719192241896,21.5936,127.73,127.65,45.17]
[1719192242209,7.8286,127.74,127.68,7.832]
[1719192242410,7.8286,127.74,127.69,45.0]
[1719192242704,7.8279,127.75,127.69,52.8313]
[1719192243280,7.8269,127.77,127.71,7.83]
[1719192243484,22.3406,127.81,127.72,45.0]
[1719192243697,7.8273,127.76,127.72,45.0]
[1719192243895,7.8273,127.76,127.71,45.0]
[1719192244225,19.5633,127.79,127.71,45.0]
[1719192244416,7.8274,127.76,127.71,45.0]
[1719192244789,22.3406,127.81,127.71,45.0]
[1719192245098,7.828,127.75,127.71,45.0]
[1719192245300,7.8274,127.76,127.7,45.0]
[1719192245503,7.8274,127.76,127.7,52.8308]
[1719192246088,19.5635,127.79,127.7,45.0]
[1719192246290,19.5635,127.79,127.69,45.17]
[1719192246491,7.8275,127.76,127.7,8.0007]
[1719192246729,7.8268,127.77,127.71,52.8302]
[1719192247023,7.8272,127.76,127.71,45.0]
[1719192247405,7.8268,127.77,127.71,52.83]
[1719192247601,22.1788,127.83,127.71,52.83]
[1719192247602,21.6386,127.86,127.74,100.0]
[1719192247813,21.6386,127.86,127.75,145.34]
[1719192248008,21.6386,127.86,127.77,7.826]
[1719192248009,7.8225,127.84,127.77,7.826]
[1719192248209,7.823,127.83,127.77,7.826]
[1719192248406,7.823,127.83,127.78,45.0]
[1719192248589,21.6386,127.86,127.78,45.0]
[1719192248590,7.8235,127.82,127.78,45.0]
[1719192248789,7.8231,127.83,127.77,45.0]
[1719192249229,41.1925,127.86,127.77,45.0]
[1719192249230,7.8223,127.84,127.77,45.0]
[1719192249436,7.8231,127.83,127.77,52.8262]
[1719192250135,7.8235,127.82,127.77,45.0]
[1719192250312,7.8231,127.83,127.77,52.8265]
[1719192250513,7.8236,127.82,127.77,45.0]
[1719192250703,7.823,127.83,127.77,52.8265]
[1719192251106,21.6386,127.86,127.71,100.0]
[1719192251437,7.826,127.78,127.72,7.8291]
[1719192251797,7.825,127.8,127.74,7.8283]
[1719192252003,7.8259,127.78,127.72,7.8291]
[1719192252237,0.34,127.85,127.69,100.0]
[1719192252433,7.826,127.78,127.72,7.8292]
[1719192253138,7.8267,127.77,127.71,7.83]
[1719192253835,7.8272,127.76,127.7,7.8305]
[1719192254340,7.8293,127.73,127.66,6.2989]
[1719192254543,7.8299,127.72,127.66,14.1321]
[1719192254703,19.5645,127.79,127.67,100.0]
[1719192254906,7.8276,127.76,127.71,7.8301]
[1719192255243,7.8268,127.77,127.71,7.8301]
[1719192255949,7.8272,127.76,127.72,45.0]
[1719192256611,7.8272,127.76,127.71,45.0]
[1719192256951,7.8278,127.75,127.71,45.0]
[1719192257104,7.8285,127.74,127.69,7.8312]
[1719192257639,7.8275,127.76,127.7,7.8306]
[1719192257832,7.8267,127.77,127.71,7.8302]
[1719192258007,7.8267,127.77,127.69,100.0]
[1719192258203,7.8267,127.77,127.7,0.17]
[1719192258411,7.8267,127.77,127.71,7.8299]
[1719192258627,19.5635,127.79,127.72,45.0]
[1719192258628,7.8273,127.76,127.72,45.0]
[1719192258939,7.8279,127.75,127.7,45.34]
[1719192259533,7.8305,127.71,127.65,7.8334]
[1719192259759,7.8301,127.72,127.66,7.833]
[1719192259947,6.3445,127.74,127.62,119.5893]
[1719192260161,7.8302,127.71,127.66,7.8332]
[1719192260362,6.3445,127.74,127.67,7.8324]
[1719192260527,6.3445,127.74,127.64,219.586]
[1719192260733,7.8294,127.73,127.67,7.8323]
[1719192261363,16.2588,127.75,127.67,100.0]
[1719192261655,7.8275,127.76,127.7,7.8307]
[1719192261855,7.8275,127.76,127.71,45.0]
[1719192262034,7.8279,127.75,127.71,45.0]
[1719192262361,7.8284,127.74,127.7,45.0]
[1719192262837,7.828,127.75,127.7,45.0]
[1719192263036,7.8274,127.76,127.7,52.8307]
[1719192263231,26.0416,127.78,127.71,7.8299]
[1719192263232,6.4765,127.78,127.71,7.8299]
[1719192263452,7.8268,127.77,127.72,45.0]
[1719192263656,7.8275,127.76,127.72,45.0]
[1719192263854,7.8275,127.76,127.71,45.0]
[1719192265059,7.8278,127.75,127.71,45.0]
[1719192265259,6.4765,127.78,127.69,8.0012]
[1719192265260,6.4765,127.78,127.69,0.17]
[1719192265559,7.8286,127.74,127.69,7.8314]
[1719192265762,7.8281,127.75,127.69,7.8314]
[1719192265937,6.4765,127.78,127.7,7.8308]
[1719192266138,7.8281,127.75,127.69,8.0012]
[1719192266436,7.8285,127.74,127.69,8.0012]
[1719192266745,7.8285,127.74,127.7,45.0]
[1719192267265,7.828,127.75,127.7,45.0]
[1719192267645,7.8291,127.73,127.7,45.0]
[1719192267849,19.5681,127.76,127.69,45.17]